bitfinex/quotes_ETHUSD_20260209
["timestamp","ask_amount","ask_price","bid_price","bid_amount"]
[1770646513020,3.466,2017.7,2016.6,5.00678114]
[1770646513221,5.02818701,2018.4,2017.1,5.00678114]
[1770646513423,1.2386662,2018.3,2017.2,5.00678114]
[1770646515036,0.002,2017.9,2017.2,5.00678114]
[1770646515357,0.002,2017.9,2016.4,6.24852827]
[1770646515651,0.2355703,2017.9,2016.4,6.24852827]
[1770646515864,4.81647691,2017.9,2016.4,5.00873451]
[1770646516227,0.0735222,2017.7,2016.4,5.00873451]
[1770646516433,4.81647691,2017.9,2016.4,6.24856423]
[1770646517554,1.23897313,2017.8,2016.4,6.24856423]
[1770646517754,0.0735222,2017.7,2016.4,6.24856423]
[1770646518656,1.23897313,2017.8,2016.4,6.24856423]
[1770646519662,0.002,2017.9,2016.7,6.19118514]
[1770646520838,0.002,2017.9,2016.8,4.95153621]
[1770646521447,0.002,2017.9,2016.8,5.02505841]
[1770646521648,0.002,2017.9,2017.0,4.95153621]
[1770646523277,0.002,2017.9,2017.2,4.95153621]
[1770646523570,0.002,2017.9,2017.5,1.23915737]
[1770646523780,0.002,2017.9,2017.5,4.95153621]
[1770646523980,0.002,2017.9,2016.9,1.2395118]
[1770646524469,0.002,2017.9,2016.9,1.2395198]
[1770646524678,0.002,2017.9,2016.9,4.95809507]
[1770646524878,0.002,2017.9,2017.1,1.23938974]
[1770646525173,0.002,2017.9,2017.1,6.19092595]
[1770646525467,0.002,2017.9,2017.1,4.95153621]
[1770646526053,0.002,2017.9,2016.9,1.23948037]
[1770646526257,0.002,2017.9,2016.7,4.95153621]
[1770646526468,1.02706494,2017.8,2016.9,0.001]
[1770646526670,0.002,2017.9,2016.9,0.001]
[1770646526972,1.02730239,2017.8,2016.9,0.001]
[1770646527170,1.03006203,2017.7,2016.9,0.001]
[1770646527471,0.002,2017.9,2016.9,0.001]
[1770646527472,1.03006203,2017.6,2016.9,0.001]
[1770646527768,0.002,2017.9,2016.9,0.001]
[1770646527769,1.24091173,2017.9,2016.9,0.001]
[1770646527965,1.03023819,2017.8,2016.9,0.001]
[1770646528172,1.03023819,2017.7,2016.9,4.95253621]
[1770646528349,1.03023819,2017.6,2016.9,4.95253621]
[1770646528554,1.24091173,2017.9,2016.9,4.95253621]
[1770646528753,1.03230662,2017.8,2016.9,4.95253621]
[1770646529055,1.03230662,2017.7,2016.9,4.95253621]
[1770646529255,1.03230662,2017.6,2016.9,4.95253621]
[1770646529457,1.03230662,2017.5,2016.9,4.95253621]
[1770646529666,1.23903454,2017.7,2016.9,6.19202238]
[1770646529864,1.03429574,2017.6,2016.9,6.19202238]
[1770646530063,1.03429574,2017.5,2016.9,6.19202238]
[1770646530265,1.2409551,2017.9,2017.0,4.95153621]
[1770646530463,1.03476232,2017.8,2017.0,4.95153621]
[1770646530650,1.24092219,2017.9,2017.0,4.95153621]
[1770646530851,1.03479197,2017.8,2017.0,4.95153621]
[1770646531059,0.002,2017.9,2017.3,4.95153621]
[1770646531262,1.24066804,2018.3,2017.3,4.95153621]
[1770646531461,1.03551042,2018.2,2017.6,4.95153621]
[1770646531753,0.002,2018.3,2017.8,4.95153621]
[1770646532478,1.0348698,2018.2,2017.2,4.95153621]
[1770646532774,1.0348698,2018.1,2017.3,1.23924921]
[1770646532966,0.002,2018.3,2017.3,6.19078542]
[1770646533168,1.03484127,2018.2,2017.4,1.23919313]
[1770646533479,1.03484127,2018.1,2017.4,4.95153621]
[1770646533679,0.002,2018.3,2017.4,4.95153621]
[1770646533863,1.03491094,2018.2,2017.4,4.95153621]
[1770646534074,1.03491094,2018.1,2017.4,4.95153621]
[1770646534383,0.002,2018.3,2017.5,5.02505841]
[1770646534558,1.03481113,2018.2,2017.5,5.02505841]
[1770646534783,0.002,2018.3,2017.5,5.02505841]
[1770646535474,0.002,2018.3,2017.9,4.95153621]
[1770646535675,0.002,2018.3,2018.1,4.95153621]
[1770646535876,1.23703276,2019.3,2018.1,4.95153621]
[1770646536081,1.03505324,2019.2,2018.1,5.02505841]
[1770646536372,1.23703276,2019.3,2018.1,5.02505841]
[1770646536373,1.03505324,2019.1,2018.5,4.95153621]
[1770646536583,1.23703276,2019.3,2018.5,4.95153621]
[1770646536774,1.03491458,2019.2,2018.5,4.95153621]
[1770646536986,1.03491458,2019.1,2018.5,4.95153621]
[1770646537188,1.23703276,2019.3,2018.5,4.95153621]
[1770646537369,1.03400031,2019.2,2018.5,4.95153621]
[1770646537689,1.23703276,2019.3,2018.5,4.95153621]
[1770646537890,1.23817542,2019.1,2018.5,4.95153621]
[1770646538200,1.03342283,2019.0,2017.8,4.95153621]
[1770646538512,1.03342283,2018.9,2017.8,4.95153621]
[1770646538664,1.03342283,2018.8,2017.8,4.95153621]
[1770646538995,1.03342283,2018.7,2017.8,4.95153621]
[1770646539193,1.03342283,2018.6,2017.8,4.95153621]
[1770646539398,0.002,2018.3,2017.8,4.95153621]
[1770646539976,0.002,2018.3,2017.8,6.19050481]
[1770646540204,0.002,2018.3,2017.8,4.95153621]
[1770646540622,0.002,2018.3,2017.8,6.19050614]
[1770646540911,0.002,2018.5,2017.9,4.95153621]
[1770646541909,0.002,2018.5,2017.9,6.19044431]
[1770646542122,0.002,2018.5,2017.9,1.2389081]
[1770646542325,0.002,2018.5,2018.0,4.95153621]
[1770646542802,1.23817542,2019.1,2018.2,0.0735222]
[1770646543133,1.23817542,2019.1,2017.7,4.95564695]
[1770646543134,15.00251124,2018.8,2017.1,4.95153621]
[1770646543287,4.46483486,2018.6,2017.1,4.95153621]
[1770646543486,5.41899581,2018.5,2017.1,4.95153621]
[1770646543797,1.03340861,2018.4,2017.1,4.95153621]
[1770646544119,1.23872757,2018.2,2017.1,4.95153621]
[1770646544297,1.03340861,2018.1,2017.1,4.95153621]
[1770646544499,4.37989446,2017.9,2016.9,0.001]
[1770646544717,1.03340861,2017.8,2016.9,0.001]
[1770646544887,1.03340861,2017.7,2016.9,0.001]
[1770646545089,1.03340861,2017.6,2016.9,0.001]
[1770646545398,4.37989446,2017.9,2016.9,0.001]
[1770646545399,1.03340861,2017.5,2016.9,0.001]
[1770646545600,1.03340861,2017.4,2016.9,0.001]
[1770646545797,1.03340861,2017.3,2016.9,0.001]
[1770646546031,1.2394031,2017.1,2016.1,5.95960519]
[1770646546211,1.03340861,2017.0,2016.1,5.95960519]
[1770646546411,1.03258906,2016.9,2016.1,5.95960519]
[1770646546718,1.2394031,2017.1,2016.1,5.95960519]
[1770646546888,1.0325366,2017.0,2016.1,5.95960519]
[1770646547089,1.0325366,2016.9,2016.1,5.95960519]
[1770646547312,1.2394031,2017.1,2016.1,5.95960519]
[1770646547514,1.03227152,2017.0,2016.1,4.71959773]
[1770646547723,1.03227152,2016.9,2016.1,4.71959773]
[1770646548020,1.2394031,2017.1,2016.1,4.71959773]
[1770646548194,1.239526,2016.9,2016.1,4.71959773]
[1770646549117,1.239526,2016.9,2016.2,4.71959773]
[1770646549308,1.23921879,2017.4,2016.4,4.71959773]
[1770646549506,1.03189412,2017.3,2016.4,4.71959773]
[1770646549715,1.23921879,2017.4,2016.4,4.71959773]
[1770646549918,1.03200081,2017.3,2016.4,4.71959773]
[1770646550212,1.23921879,2017.4,2016.4,4.71959773]
[1770646550414,1.23934166,2017.2,2016.6,4.71959773]
[1770646551898,1.23934166,2017.2,2016.3,0.0735222]
[1770646552099,1.03146764,2017.1,2016.0,5.96065082]
[1770646552300,1.239526,2016.9,2016.1,5.95960906]
[1770646552600,1.239526,2016.9,2016.2,4.71959773]
[1770646554408,1.56048389,2017.7,2016.2,5.95951086]
[1770646554724,1.03039192,2017.5,2016.3,4.71959773]
[1770646554925,1.03039192,2017.4,2016.3,4.71959773]
[1770646555134,1.03039192,2017.3,2016.3,4.71959773]
[1770646555302,1.03039192,2017.2,2016.3,4.71959773]
[1770646555505,3.463,2017.4,2016.3,4.71959773]
[1770646555710,1.0301373,2017.3,2016.0,6.03419424]
[1770646555912,1.0301373,2017.2,2016.1,4.71959773]
[1770646556143,1.0301373,2017.1,2016.1,4.71959773]
[1770646556439,3.463,2017.4,2016.1,4.71959773]
[1770646556600,2.26911495,2017.3,2016.1,4.71959773]
[1770646556926,1.02983473,2017.2,2016.1,4.71959773]
[1770646557106,1.02983473,2017.2,2016.1,5.9596042]
[1770646557305,1.02983473,2017.2,2016.2,4.71959773]
[1770646557509,1.23928022,2017.3,2016.2,4.71959773]
[1770646557744,1.0299679,2017.2,2016.2,4.71959773]
[1770646558038,1.23928022,2017.3,2016.2,4.71959773]
[1770646558228,1.02996252,2017.2,2016.2,4.71959773]
[1770646558424,1.23928022,2017.3,2016.2,4.71959773]
[1770646558633,1.2394031,2017.1,2016.2,4.71959773]
[1770646560520,4.95751816,2017.3,2016.2,4.71959773]
[1770646560716,1.02920453,2017.2,2016.2,4.71959773]
[1770646560948,4.28414686,2017.2,2016.0,0.001]
[1770646561154,5.31323468,2017.1,2016.0,0.001]
[1770646561310,4.28414686,2016.9,2016.0,0.001]
[1770646561650,1.02908782,2016.8,2016.0,0.001]
[1770646561811,3.464,2016.7,2016.0,0.001]
[1770646562633,1.2397104,2016.6,2016.0,0.001]
[1770646564914,4.95765844,2017.1,2016.2,4.71959773]
[1770646565510,4.956884,2017.4,2016.2,4.71959773]
[1770646566142,1.03090419,2017.3,2016.2,4.71959773]
[1770646566323,4.956884,2017.4,2016.2,4.71959773]
[1770646566524,1.03152921,2017.3,2016.2,4.71959773]
[1770646566842,2.27083486,2017.2,2016.2,4.71959773]
[1770646567045,1.23934166,2017.2,2016.2,4.71959773]
[1770646567341,1.23901895,2017.8,2016.9,4.71959773]
[1770646567836,4.95484401,2018.3,2016.9,4.71959773]
[1770646568043,1.03376198,2018.2,2016.9,4.71959773]
[1770646568355,5.02084475,2017.9,2016.5,4.71959773]
[1770646568576,4.49776198,2017.8,2016.5,4.71959773]
[1770646568847,2.27279652,2017.7,2016.6,4.71959773]
[1770646569056,1.23902103,2017.8,2016.6,4.71959773]
[1770646569362,1.03453139,2017.7,2016.6,4.71959773]
[1770646569540,4.95516022,2018.1,2016.6,4.71959773]
[1770646569720,1.03511455,2018.0,2016.6,4.71959773]
[1770646569925,4.95516022,2018.1,2016.8,4.71959773]
[1770646569926,1.03511455,2017.9,2016.8,4.71959773]
[1770646570130,1.23878895,2018.1,2016.8,4.79311993]
[1770646570330,1.03519932,2018.0,2016.8,4.79311993]
[1770646570557,7.52939605,2018.5,2017.1,0.0735222]
[1770646570756,1.03568225,2018.4,2017.4,4.71959773]
[1770646570942,1.03568225,2018.3,2017.4,4.71959773]
[1770646571145,1.23857376,2018.5,2017.4,4.71959773]
[1770646571340,1.03545223,2018.4,2017.4,4.79311993]
[1770646571541,1.23852651,2018.6,2017.4,4.79311993]
[1770646571852,1.03649467,2018.5,2017.4,4.79311993]
[1770646572159,1.03585607,2018.4,2017.2,1.23929801]
[1770646572372,1.03683342,2018.3,2017.2,5.95889574]
[1770646572662,2.27557535,2018.2,2017.2,5.95889574]
[1770646572866,1.23874193,2018.2,2017.2,5.95889574]
[1770646573044,1.23871202,2018.3,2017.3,4.71959773]
[1770646573238,1.03700384,2018.2,2017.3,4.71959773]
[1770646573443,1.23871202,2018.3,2017.3,4.71959773]
[1770646573630,1.03747232,2018.2,2017.3,4.71959773]
[1770646573829,1.23871202,2018.3,2017.3,4.71959773]
[1770646574062,1.03747022,2018.2,2017.3,4.71959773]
[1770646574361,1.23871202,2018.3,2017.3,4.71959773]
[1770646574568,1.03718467,2018.2,2017.3,4.71959773]
[1770646574742,1.23871202,2018.3,2017.4,5.95881652]
[1770646575469,4.95393613,2018.6,2017.5,4.88183837]
[1770646575470,4.95403708,2018.6,2017.5,4.88183837]
[1770646575669,1.03674509,2018.5,2017.5,4.88183837]
[1770646575864,1.03674509,2018.4,2017.5,4.88183837]
[1770646576038,1.03674509,2018.3,2017.5,4.88183837]
[1770646576236,4.95403708,2018.6,2017.5,4.88183837]
[1770646576436,1.03637159,2018.5,2017.5,4.88183837]
[1770646576659,1.03637159,2018.4,2017.5,4.88183837]
[1770646576848,1.03637159,2018.3,2017.5,6.12097839]
[1770646577055,0.002,2018.1,2017.5,6.12097839]
[1770646577762,0.002,2018.1,2017.6,4.88183837]
[1770646579069,0.002,2018.1,2017.4,1.23918337]
[1770646579877,0.002,2018.1,2017.4,4.98088373]
[1770646580080,0.002,2018.1,2016.8,4.98088373]
[1770646580268,9.25289816,2018.0,2016.7,1.23960426]
[1770646580466,1.03490945,2017.9,2016.6,9.93960284]
[1770646580667,1.03490945,2017.8,2016.6,6.22055747]
[1770646580873,1.23909595,2017.6,2016.7,1.23964713]
[1770646581073,1.23909595,2017.6,2016.4,1.23979898]
[1770646581074,1.03394409,2017.5,2016.4,1.23979898]
[1770646581255,1.03394409,2017.4,2016.4,1.23979898]
[1770646581457,1.23909595,2017.6,2016.4,1.23980531]
[1770646581676,1.03388969,2017.5,2016.4,1.23980531]
[1770646581881,1.03388969,2017.4,2016.4,1.23980531]
[1770646582182,1.23909595,2017.6,2016.3,4.95954906]
[1770646582183,1.0338776,2017.3,2016.3,1.23985239]
[1770646582375,1.03361011,2017.2,2016.3,1.23985239]
[1770646582550,5.99408466,2017.6,2016.3,1.23985239]
[1770646582756,1.03360239,2017.5,2016.3,1.23985239]
[1770646582955,5.02990602,2017.9,2016.3,1.23985239]
[1770646582956,1.03360239,2017.4,2016.8,5.05440593]
[1770646583159,4.75498871,2017.9,2016.5,5.05440593]
[1770646583358,1.03388707,2017.8,2016.5,4.98088373]
[1770646583596,1.03388707,2017.7,2016.5,4.98088373]
[1770646583852,1.03388707,2017.6,2016.5,4.98088373]
[1770646584082,1.03388707,2017.5,2016.5,4.98088373]
[1770646584382,4.75498871,2017.9,2016.6,5.05440593]
[1770646584692,1.03360669,2017.8,2016.6,5.05440593]
[1770646584899,1.23909595,2017.6,2016.7,1.23964893]
[1770646585204,1.23901977,2017.8,2016.9,4.98088373]
[1770646585359,1.03379432,2017.7,2016.9,4.98088373]
[1770646585559,1.23901977,2017.8,2016.7,1.23964893]
[1770646585762,1.03379801,2017.7,2016.7,1.23964893]
[1770646585989,1.23901977,2017.8,2016.7,1.23964893]
[1770646586194,1.03379542,2017.7,2016.7,0.98964893]
[1770646586397,1.23890052,2018.0,2016.7,0.98964893]
[1770646586594,1.03383543,2017.9,2016.7,5.97053266]
[1770646586764,1.03383543,2017.8,2016.7,5.97053266]
[1770646586962,0.002,2018.1,2016.7,5.97053266]
[1770646587291,1.03354732,2018.0,2017.0,4.98088373]
[1770646587591,1.03354732,2017.9,2017.0,4.98088373]
[1770646587782,1.03354732,2017.8,2017.0,4.98088373]
[1770646587982,0.002,2018.1,2017.0,4.98088373]
[1770646588156,1.03330148,2018.0,2017.0,4.98088373]
[1770646588361,1.03330148,2017.9,2016.7,5.97053266]
[1770646588595,1.03330148,2017.8,2016.7,5.97053266]
[1770646588798,1.03330148,2017.7,2016.7,5.97053266]
[1770646588997,4.75498871,2018.0,2016.4,4.98088373]
[1770646588998,6.06742264,2017.9,2016.4,4.98088373]
[1770646589201,4.75498871,2017.7,2016.4,6.22071378]
[1770646589499,1.033893,2017.6,2016.4,6.22071436]
[1770646589696,1.033893,2017.6,2017.2,0.001]
[1770646589864,3.463,2017.5,2016.4,4.98088373]
[1770646590201,3.463,2017.5,2017.0,0.001]
[1770646590202,1.033893,2017.4,2017.0,0.001]
[1770646590401,1.033893,2017.4,2016.2,4.96082392]
[1770646590402,1.033893,2017.4,2016.2,1.24091259]
[1770646590689,0.7,2017.3,2016.2,1.24091259]
[1770646590873,1.033893,2017.2,2016.2,1.24091259]
[1770646591188,1.2394031,2017.1,2016.2,0.001]
[1770646591391,1.033893,2017.0,2016.2,0.001]
[1770646592686,5.78888171,2017.0,2016.2,0.001]
[1770646592879,5.78888171,2016.9,2016.2,0.001]
[1770646593192,1.23964893,2016.7,2016.1,0.001]
[1770646593389,1.033893,2016.6,2016.1,0.001]
[1770646595284,1.23977188,2016.5,2016.1,0.001]
[1770646595989,1.23977188,2016.5,2015.8,0.001]
[1770646597184,1.23989485,2016.3,2015.8,0.001]
[1770646597688,1.23989485,2016.3,2015.1,0.001]
[1770646597689,4.75498871,2016.1,2015.1,0.001]
[1770646597888,1.03365393,2016.0,2015.1,0.001]
[1770646598190,4.75498871,2016.1,2015.1,0.001]
[1770646598191,1.10717613,2015.9,2015.1,0.001]
[1770646598388,1.03365393,2015.8,2015.1,0.001]
[1770646598581,0.0735222,2015.9,2015.1,0.001]
[1770646598582,1.03365393,2015.7,2015.1,0.001]
[1770646598783,0.0735222,2016.0,2015.1,0.001]
[1770646599001,1.03221663,2015.9,2015.1,0.001]
[1770646599196,1.03221663,2015.8,2015.1,0.001]
[1770646599406,2.27132219,2015.7,2015.1,0.001]
[1770646599713,1.24026392,2015.7,2015.1,0.001]
[1770646600026,1.24001785,2016.1,2015.1,0.001]
[1770646600189,1.02990621,2016.0,2015.1,0.001]
[1770646600393,4.70501785,2016.1,2015.1,4.98188373]
[1770646601613,4.70501785,2016.1,2015.2,1.24057165]
[1770646601827,6.47598941,2016.3,2015.2,1.24057165]
[1770646601828,1.51591799,2016.3,2015.4,4.98088373]
[1770646601987,2.75581584,2016.3,2015.4,4.98088373]
[1770646602989,1.51591799,2016.3,2015.4,4.98088373]
[1770646603693,1.51591799,2016.3,2015.5,6.22127073]
[1770646606081,0.002,2016.4,2016.0,4.86326992]
[1770646607223,0.002,2016.4,2015.6,4.86326992]
[1770646607998,0.002,2016.4,2015.7,1.24026392]
[1770646609591,0.002,2016.4,2015.7,6.10353384]
[1770646610213,0.002,2016.4,2015.7,1.24026392]
[1770646610408,0.002,2016.4,2015.5,1.24038629]
[1770646610743,1.03414039,2016.3,2015.5,1.24038629]
[1770646610954,0.002,2016.4,2015.6,1.24032373]
[1770646611118,1.03414288,2016.3,2015.6,1.24032373]
[1770646611315,0.002,2016.4,2015.6,1.24032373]
[1770646611644,1.03421967,2016.3,2015.6,1.24032373]
[1770646611812,0.002,2016.4,2015.6,1.24032373]
[1770646612009,1.03408442,2016.3,2015.5,1.24038691]
[1770646612210,1.24001785,2016.1,2015.3,0.001]
[1770646614153,1.0344501,2016.0,2015.3,0.001]
[1770646614352,4.95958192,2016.3,2015.3,0.001]
[1770646614517,4.53802832,2016.0,2015.3,0.001]
[1770646614714,5.57285681,2015.9,2015.3,0.001]
[1770646614936,1.03482849,2015.8,2015.3,0.001]
[1770646615136,1.03482849,2015.7,2015.3,0.001]
[1770646615333,1.0343765,2015.6,2015.3,0.001]
[1770646615645,1.0343765,2015.5,2015.3,0.001]
[1770646615972,3.43948694,2016.3,2015.3,0.001]
[1770646616256,0.002,2016.4,2015.6,6.10359538]
[1770646616429,0.002,2016.4,2015.8,2.745126]
[1770646616751,0.002,2016.4,2015.8,3.829126]
[1770646616939,0.002,2016.2,2015.9,4.86326992]
[1770646617132,0.002,2016.2,2015.8,0.0735222]
[1770646617133,0.002,2016.6,2016.1,4.93679212]
[1770646617314,1.23923177,2017.4,2015.9,4.86326992]
[1770646617516,1.03873828,2017.3,2016.0,4.86326992]
[1770646617727,1.03673828,2017.2,2016.0,4.86326992]
[1770646618148,1.03673828,2017.2,2016.1,4.93679212]
[1770646618352,1.2394031,2017.1,2016.1,1.2399758]
[1770646618559,1.03673828,2017.0,2016.1,1.2399758]
[1770646619035,1.03673828,2017.0,2015.8,4.86326992]
[1770646619241,1.03673828,2017.0,2015.9,1.2401398]
[1770646619434,1.03673828,2016.9,2015.9,1.2401398]
[1770646619635,1.03673828,2016.8,2015.9,1.2401398]
[1770646619836,1.03673828,2016.7,2015.8,1.24019644]
[1770646620051,1.03673828,2016.6,2015.5,0.001]
[1770646620237,1.03673828,2016.5,2015.5,1.24138676]
[1770646620421,2.27657164,2016.4,2015.5,0.001]
[1770646620623,1.03673828,2016.3,2015.5,0.001]
[1770646622357,1.23995635,2016.2,2015.5,0.001]
[1770646622659,1.03673828,2016.1,2015.5,0.001]
[1770646624567,1.03673828,2016.0,2015.5,0.001]
[1770646624862,1.23997815,2016.2,2015.5,0.001]
[1770646625062,1.03800452,2016.1,2015.5,0.001]
[1770646625359,1.03800452,2016.0,2015.5,0.001]
[1770646625547,1.03800452,2015.9,2015.5,0.001]
[1770646625868,1.23997163,2016.2,2015.5,0.001]
[1770646626168,1.03799839,2016.1,2015.5,0.001]
[1770646626337,1.03799839,2016.0,2015.5,0.001]
[1770646626536,2.27814141,2015.9,2015.5,0.001]
[1770646626847,2.27814141,2015.9,2015.3,0.001]
[1770646626848,1.03798911,2015.8,2015.3,0.001]
[1770646627045,1.03798911,2015.7,2015.3,0.001]
[1770646627267,1.03816864,2015.6,2015.3,0.001]
[1770646627443,1.24014302,2015.9,2015.0,0.001]
[1770646627766,5.57604819,2015.8,2015.0,0.001]
[1770646628065,1.03801987,2015.7,2015.0,0.001]
[1770646628263,1.03801987,2015.6,2015.0,0.001]
[1770646628466,1.03801987,2015.5,2015.0,0.001]
[1770646628689,1.24051009,2015.3,2015.0,0.001]
[1770646629038,1.03772615,2015.2,2015.0,0.001]
[1770646629234,1.24051009,2015.3,2014.4,1.24201632]
[1770646629459,1.0375676,2015.2,2014.4,1.24201632]
[1770646629766,1.0375676,2015.1,2014.4,1.24206068]
[1770646629980,1.0375676,2015.0,2014.4,0.001]
[1770646630290,1.0375676,2014.9,2014.4,1.2420629]
[1770646630580,9.24453841,2015.3,2014.6,0.001]
[1770646630786,1.03686789,2015.2,2014.6,0.001]
[1770646630964,1.03686789,2015.1,2014.6,0.001]
[1770646631283,1.03686789,2015.0,2014.6,0.001]
[1770646631592,9.24453841,2015.3,2014.2,0.001]
[1770646631593,1.03686789,2014.9,2014.2,0.001]
[1770646631753,1.03686789,2014.8,2014.2,0.001]
[1770646632082,0.7,2015.2,2014.2,0.001]
[1770646632083,1.03615446,2014.7,2014.2,0.001]
[1770646632384,4.53802832,2015.2,2014.2,0.001]
[1770646632589,5.57333591,2015.1,2014.2,0.001]
[1770646632754,6.81403069,2015.0,2014.2,0.001]
[1770646632951,1.03530759,2014.9,2014.2,0.001]
[1770646633157,1.03530759,2014.8,2014.2,0.001]
[1770646633351,1.24069478,2015.0,2014.2,0.001]
[1770646633584,1.03428125,2014.9,2014.2,0.001]
[1770646633889,1.03428125,2014.8,2014.2,0.001]
[1770646634066,1.24069478,2015.0,2014.2,0.001]
[1770646634267,1.03399947,2014.9,2014.2,0.001]
[1770646634595,1.03399947,2014.8,2014.2,0.001]
[1770646634790,1.24087953,2014.7,2014.2,0.001]
[1770646634992,1.24087953,2014.7,2013.6,1.24152846]
[1770646635158,1.24087953,2014.7,2013.7,1.24149553]
[1770646635159,4.50070364,2014.6,2013.7,1.24149553]
[1770646635363,1.03370364,2014.5,2013.7,1.24149553]
[1770646635582,3.467,2014.6,2013.7,1.24149553]
[1770646636488,8.4293336,2015.2,2013.8,4.75274097]
[1770646636683,1.24069478,2015.0,2013.9,1.24137246]
[1770646636991,1.2406485,2015.1,2014.0,4.75274097]
[1770646637199,1.03256044,2015.0,2014.0,4.75274097]
[1770646637495,1.03256044,2015.0,2013.9,1.24137246]
[1770646637496,5.59475009,2014.9,2013.8,1.24143312]
[1770646637692,1.032339,2014.8,2013.8,1.24143312]
[1770646637880,1.032339,2014.7,2013.8,1.24143312]
[1770646638086,1.032339,2014.7,2013.7,4.96586256]
[1770646638087,1.03219182,2014.6,2013.7,1.24146771]
[1770646638264,3.467,2014.5,2013.7,1.24146771]
[1770646638775,1.24106433,2014.4,2013.5,0.001]
[1770646641287,5.5392564,2014.3,2013.5,0.001]
[1770646641494,4.50875342,2014.3,2013.5,0.001]
[1770646641672,5.53848503,2014.2,2013.5,0.001]
[1770646641870,5.64069516,2014.1,2013.3,0.001]
[1770646642077,5.53829516,2014.0,2012.8,0.001]
[1770646642272,4.58227562,2013.8,2012.8,0.001]
[1770646642783,7.97675342,2013.7,2012.8,0.001]
[1770646643102,2.26994047,2013.6,2012.8,0.001]
[1770646643301,1.14994078,2013.5,2012.8,0.001]
[1770646644172,1.22346298,2013.5,2012.8,0.001]
[1770646644409,1.14994078,2013.4,2012.8,0.001]
[1770646644898,1.14994078,2013.4,2012.8,4.62579783]
[1770646645067,1.14994078,2013.4,2012.9,1.24198916]
[1770646645705,2.3916257,2013.4,2012.8,1.24300161]
[1770646645909,1.14994078,2013.4,2012.8,5.86779944]
[1770646647086,1.14994078,2013.4,2013.0,1.24192747]
[1770646647808,1.14994078,2013.4,2012.9,1.24198395]
[1770646648409,1.14994078,2013.4,2012.9,1.24195704]
[1770646648791,1.14994078,2013.4,2012.9,5.86675487]
[1770646650337,3.469,2013.9,2013.2,0.0735222]
[1770646650618,5.13331448,2014.6,2013.3,4.62479783]
[1770646650794,0.62456106,2014.6,2013.3,4.62479783]
[1770646650978,0.62456106,2014.6,2013.5,4.69832003]
[1770646651730,0.62456106,2014.6,2013.9,4.62479783]
[1770646651895,9.21801734,2015.7,2014.2,4.62479783]
[1770646652217,5.53977351,2015.6,2014.2,4.62479783]
[1770646652413,1.03102009,2015.5,2014.2,4.62479783]
[1770646653612,1.24044854,2015.4,2014.3,1.24112594]
[1770646654614,4.50875342,2015.1,2013.3,4.62479783]
[1770646654790,1.03288764,2015.0,2013.3,3.469]
[1770646654999,4.50188764,2014.9,2013.6,4.96606614]
[1770646655206,5.61516326,2014.8,2013.3,3.469]
[1770646655431,5.54164106,2014.7,2013.3,3.469]
[1770646655602,1.24100273,2014.5,2013.1,4.96743374]
[1770646655801,1.03288764,2014.4,2013.7,0.001]
[1770646656100,1.03488764,2014.4,2013.7,0.001]
[1770646656319,1.03288764,2014.3,2013.7,0.001]
[1770646657123,1.03288764,2014.3,2013.5,0.001]
[1770646658028,1.24118756,2014.2,2013.5,0.001]
[1770646658220,1.03288764,2014.1,2013.5,0.001]
[1770646658417,4.50188764,2014.1,2013.5,0.001]
[1770646658619,1.03288764,2014.0,2013.5,0.001]
[1770646659213,5.54164106,2014.0,2012.8,0.001]
[1770646659436,5.54164106,2013.9,2012.8,0.001]
[1770646659614,1.03288764,2013.8,2012.9,1.24198834]
[1770646659816,1.03288764,2013.8,2012.9,1.24193745]
[1770646660035,2.27438339,2013.7,2012.8,0.001]
[1770646660239,1.03288764,2013.6,2012.8,0.001]
[1770646660942,1.24312594,2014.4,2013.2,4.62479783]
[1770646661110,5.99996588,2014.3,2013.2,4.62479783]
[1770646661303,1.03543633,2014.2,2013.2,4.62479783]
[1770646661510,1.03543633,2014.1,2013.2,4.62479783]
[1770646661704,1.24112594,2014.3,2013.2,4.62479783]
[1770646661905,1.03578847,2014.2,2013.2,4.62479783]
[1770646662141,1.24119119,2014.2,2013.3,5.86654024]
[1770646662441,1.24119119,2014.2,2013.3,4.62479783]
[1770646662619,1.03553828,2014.1,2013.2,1.24177716]
[1770646662811,1.03553828,2014.0,2013.2,1.24177716]
[1770646663010,1.03553828,2013.9,2013.2,1.24177716]
[1770646663211,1.03553828,2013.8,2013.2,1.24177716]
[1770646663414,1.24119119,2014.2,2013.1,1.24182365]
[1770646663616,1.03547913,2014.1,2013.2,1.24179243]
[1770646663841,1.03547913,2014.0,2013.2,1.24179243]
[1770646664029,1.2414341,2013.8,2012.9,1.24198916]
[1770646664456,1.24112594,2014.3,2013.3,7.52667783]
[1770646664657,1.03588845,2014.2,2013.4,0.0735222]
[1770646664855,1.03588845,2014.1,2013.3,4.62479783]
[1770646665146,1.24310905,2014.4,2013.3,4.62479783]
[1770646665361,1.03597729,2014.3,2013.4,4.85882097]
[1770646665671,1.03597729,2014.2,2013.4,4.85882097]
[1770646665812,1.24310905,2014.4,2013.4,4.85882097]
[1770646666014,1.03602249,2014.3,2013.4,4.85882097]
[1770646666219,1.03602249,2014.2,2013.5,1.24161907]
[1770646666532,1.24307965,2014.4,2013.5,6.02691784]
[1770646666733,1.03608537,2014.3,2013.5,6.02691784]
[1770646666934,1.24306875,2014.4,2013.5,6.02691784]
[1770646667134,1.0361042,2014.3,2013.5,6.02691784]
[1770646667443,1.24306875,2014.4,2013.5,6.02691784]
[1770646667626,1.03632008,2014.3,2013.5,6.02691784]
[1770646667949,1.24306875,2014.4,2013.5,6.02691784]
[1770646668243,1.03632063,2014.3,2013.5,6.02691784]
[1770646668537,1.24306875,2014.4,2013.5,6.02691784]
[1770646668538,0.002,2014.4,2013.6,4.78529877]
[1770646668943,1.24307219,2014.4,2013.5,1.24161907]
[1770646669148,1.24307219,2014.4,2013.5,6.02691784]
[1770646669347,0.002,2014.4,2013.7,4.85882097]
[1770646669646,0.002,2014.6,2013.9,4.78529877]
[1770646670036,0.002,2014.6,2014.0,4.85882097]
[1770646670431,0.002,2014.6,2014.1,1.24124919]
[1770646670636,0.002,2014.9,2014.1,1.24124919]
[1770646670637,0.002,2014.9,2014.4,4.78529877]
[1770646671239,0.002,2015.8,2014.7,15.44610246]
[1770646671454,4.62879838,2015.7,2014.2,4.78529877]